[Event "Tournoi de MI de l'Echiquier du Pays de Bray"]
[Site "Gournay-en-Bray, France"]
[Date "2023.05.14"]
[Round "1.1"]
[White "HÖGLAUER, Patrick"]
[Black "TEREKHOV, Andrey"]
[Result "0-1"]
[TimeControl "1h30/40 + 30 (30s/c)"]
[WhiteTitle "FM"]
[BlackTitle "FM"]
[WhiteFideId "1270548"]
[BlackFideId "4121481"]
[WhiteElo "2280"]
[BlackElo "2314"]

1. e4 {[%clk 01:30:55]} {[%emt 00:00:04]} c5 {[%clk 01:30:53]} {[%emt
00:00:07]} 2. Nf3 {[%clk 01:31:04]} {[%emt 00:00:21]} e6 {[%clk 01:31:17]}
{[%emt 00:00:07]} 3. d4 {[%clk 01:31:29]} {[%emt 00:00:05]} cxd4 {[%clk
01:31:42]} {[%emt 00:00:04]} 4. Nxd4 {[%clk 01:31:54]} {[%emt 00:00:05]} Nc6
{[%clk 01:32:06]} {[%emt 00:00:06]} 5. Nc3 {[%clk 01:31:57]} {[%emt 00:00:28]}
Qc7 {[%clk 01:32:19]} {[%emt 00:00:17]} 6. Be2 {[%clk 01:31:17]} {[%emt
00:01:10]} Nf6 {[%clk 01:31:43]} {[%emt 00:01:06]} 7. Be3 {[%clk 01:25:33]}
{[%emt 00:06:14]} a6 {[%clk 01:31:26]} {[%emt 00:00:48]} 8. O-O {[%clk
01:25:33]} {[%emt 00:00:30]} Be7 {[%clk 01:31:32]} {[%emt 00:00:24]} 9. f4
{[%clk 01:24:08]} {[%emt 00:01:56]} d6 {[%clk 01:31:37]} {[%emt 00:00:24]} 10.
a4 {[%clk 01:22:32]} {[%emt 00:02:06]} O-O {[%clk 01:30:49]} {[%emt 00:01:18]}
11. Nb3 {[%clk 01:18:44]} {[%emt 00:04:19]} b6 {[%clk 01:23:55]} {[%emt
00:07:24]} 12. Qe1 {[%clk 01:11:10]} {[%emt 00:08:04]} Bb7 {[%clk 01:04:02]}
{[%emt 00:20:23]} 13. Bf3 {[%clk 00:59:58]} {[%emt 00:11:41]} Rab8 {[%clk
00:48:24]} {[%emt 00:16:08]} 14. Kh1 {[%clk 00:52:54]} {[%emt 00:07:33]} Nd7
{[%clk 00:39:37]} {[%emt 00:09:17]} 15. Rd1 {[%clk 00:43:19]} {[%emt 00:10:05]}
Nc5 {[%clk 00:32:38]} {[%emt 00:07:29]} 16. Nxc5 {[%clk 00:35:12]} {[%emt
00:08:37]} bxc5 {[%clk 00:31:03]} {[%emt 00:02:05]} 17. Qg3 {[%clk 00:30:07]}
{[%emt 00:05:35]} Ba8 {[%clk 00:24:19]} {[%emt 00:07:15]} 18. f5 {[%clk
00:22:07]} {[%emt 00:08:30]} Kh8 {[%clk 00:19:22]} {[%emt 00:05:27]} 19. Bxc5
{[%clk 00:16:38]} {[%emt 00:05:59]} Rxb2 {[%clk 00:12:15]} {[%emt 00:07:37]} 20.
Rxd6 {[%clk 00:13:14]} {[%emt 00:03:54]} Ne5 {[%clk 00:11:50]} {[%emt
00:00:54]} 21. Qxe5 {[%clk 00:11:07]} {[%emt 00:02:38]} Bf6 {[%clk 00:12:05]}
{[%emt 00:00:14]} 22. Qg3 {[%clk 00:03:38]} {[%emt 00:07:58]} Qxc5 {[%clk
00:11:55]} {[%emt 00:00:41]} 23. Nd5 {[%clk 00:02:16]} {[%emt 00:01:52]} exd5
{[%clk 00:08:56]} {[%emt 00:03:29]} 24. e5 {[%clk 00:02:02]} {[%emt 00:00:44]}
Qc4 {[%clk 00:08:55]} {[%emt 00:00:31]} 25. Rg1 {[%clk 00:02:12]} {[%emt
00:00:20]} Bh4 {[%clk 00:08:19]} {[%emt 00:01:06]} 26. Qh3 {[%clk 00:02:41]}
Qd4 {[%clk 00:06:12]} {[%emt 00:02:38]} 27. g3 {[%clk 00:00:34]} {[%emt
00:02:37]} Qxe5 {[%clk 00:06:12]} {[%emt 00:00:30]} 28. Rxa6 {[%clk 00:01:03]}
{[%emt 00:00:01]} Bb7 {[%clk 00:05:06]} {[%emt 00:01:36]} 29. Ra5 {[%clk
00:00:32]} {[%emt 00:01:00]} Bf6 {[%clk 00:03:17]} {[%emt 00:02:19]} 30. g4
{[%clk 00:01:01]} {[%emt 00:00:02]} Qc3 {[%clk 00:02:39]} {[%emt 00:01:07]} 31.
g5 {[%clk 00:00:43]} {[%emt 00:00:47]} d4 {[%clk 00:02:38]} {[%emt 00:00:32]}
32. Bxb7 {[%clk 00:00:32]} {[%emt 00:00:42]} Qxh3 {[%clk 00:02:55]} {[%emt
00:00:12]} 33. gxf6 {[%clk 00:00:58]} {[%emt 00:00:03]} gxf6 {[%clk 00:03:13]}
{[%emt 00:00:13]} 0-1

[Event "Tournoi de MI de l'Echiquier du Pays de Bray"]
[Site "Gournay-en-Bray, France"]
[Date "2023.05.14"]
[Round "1.2"]
[White "NIKCEVIC, Nebosja"]
[Black "DECUIGNIERE, Tom"]
[Result "0-1"]
[TimeControl "1h30/40 + 30 (30s/c)"]
[WhiteTitle "GM"]
[BlackTitle "FM"]
[WhiteFideId "901776"]
[BlackFideId "26093820"]
[WhiteElo "2373"]
[BlackElo "2396"]

1. d4 {[%clk 01:30:18]} {[%emt 00:00:41]} Nf6 {[%clk 01:30:53]} {[%emt
00:00:07]} 2. Nf3 {[%clk 01:30:41]} {[%emt 00:00:06]} e6 {[%clk 01:30:39]}
{[%emt 00:00:44]} 3. c4 {[%clk 01:29:48]} {[%emt 00:01:23]} d5 {[%clk
01:30:53]} {[%emt 00:00:16]} 4. Nc3 {[%clk 01:30:05]} {[%emt 00:00:12]} Bb4
{[%clk 01:30:54]} {[%emt 00:00:29]} 5. Qa4+ {[%clk 01:29:02]} {[%emt 00:01:33]}
Nc6 {[%clk 01:31:17]} {[%emt 00:00:09]} 6. Bg5 {[%clk 01:29:16]} {[%emt
00:00:16]} h6 {[%clk 01:28:43]} {[%emt 00:03:04]} 7. Bxf6 {[%clk 01:29:17]}
{[%emt 00:00:29]} Qxf6 {[%clk 01:29:01]} {[%emt 00:00:12]} 8. e3 {[%clk
01:29:33]} {[%emt 00:00:14]} O-O {[%clk 01:27:25]} {[%emt 00:02:07]} 9. cxd5
{[%clk 01:29:12]} {[%emt 00:00:51]} exd5 {[%clk 01:27:32]} {[%emt 00:00:23]} 10.
Rc1 {[%clk 01:29:26]} {[%emt 00:00:16]} Rd8 {[%clk 01:20:19]} {[%emt 00:07:43]}
11. Bb5 {[%clk 01:23:27]} {[%emt 00:06:28]} Qg6 {[%clk 01:03:23]} {[%emt
00:17:26]} 12. O-O {[%clk 01:20:15]} {[%emt 00:03:42]} Bh3 {[%clk 01:01:44]}
{[%emt 00:02:09]} 13. Ne1 {[%clk 01:14:19]} {[%emt 00:06:25]} Bf8 {[%clk
00:56:58]} {[%emt 00:05:17]} 14. Bxc6 {[%clk 01:12:09]} {[%emt 00:02:41]} bxc6
{[%clk 00:57:22]} {[%emt 00:00:05]} 15. Ne2 {[%clk 01:11:34]} {[%emt 00:01:04]}
Bd7 {[%clk 00:52:35]} {[%emt 00:05:18]} 16. Qc2 {[%clk 01:09:28]} {[%emt
00:02:35]} Qf6 {[%clk 00:49:57]} {[%emt 00:03:08]} 17. Nd3 {[%clk 01:07:32]}
{[%emt 00:02:25]} Rab8 {[%clk 00:45:28]} {[%emt 00:05:00]} 18. Qd2 {[%clk
01:03:12]} {[%emt 00:04:50]} Bf5 {[%clk 00:40:15]} {[%emt 00:05:44]} 19. Nc5
{[%clk 00:57:37]} {[%emt 00:06:04]} Bd6 {[%clk 00:40:14]} {[%emt 00:00:30]} 20.
Rc3 {[%clk 00:55:50]} {[%emt 00:02:17]} h5 {[%clk 00:38:50]} {[%emt 00:01:54]}
21. Rfc1 {[%clk 00:54:29]} {[%emt 00:01:51]} h4 {[%clk 00:37:48]} {[%emt
00:01:32]} 22. h3 {[%clk 00:51:21]} {[%emt 00:03:37]} g5 {[%clk 00:34:15]}
{[%emt 00:04:04]} 23. Nd3 {[%clk 00:34:23]} {[%emt 00:17:28]} Rb6 {[%clk
00:29:40]} {[%emt 00:05:05]} 24. a3 {[%clk 00:30:56]} {[%emt 00:03:57]} Bxd3
{[%clk 00:26:00]} {[%emt 00:04:09]} 25. Rxd3 {[%clk 00:29:52]} {[%emt
00:01:34]} c5 {[%clk 00:26:23]} {[%emt 00:00:08]} 26. Nc3 {[%clk 00:14:14]}
{[%emt 00:16:08]} cxd4 {[%clk 00:22:20]} {[%emt 00:04:33]} 27. Rxd4 {[%clk
00:13:08]} {[%emt 00:01:36]} c6 {[%clk 00:22:10]} {[%emt 00:00:40]} 28. Rg4
{[%clk 00:11:11]} {[%emt 00:02:26]} Kf8 {[%clk 00:20:03]} {[%emt 00:02:37]} 29.
Na4 {[%clk 00:10:22]} {[%emt 00:01:20]} Rbb8 {[%clk 00:18:25]} {[%emt
00:02:07]} 30. f4 {[%clk 00:04:28]} {[%emt 00:06:24]} d4 {[%clk 00:15:03]}
{[%emt 00:03:52]} 31. fxg5 {[%clk 00:03:04]} {[%emt 00:01:54]} Qe5 {[%clk
00:13:40]} {[%emt 00:01:53]} 32. exd4 {[%clk 00:03:27]} {[%emt 00:00:07]} Qh2+
{[%clk 00:13:01]} {[%emt 00:01:08]} 33. Kf1 {[%clk 00:03:42]} {[%emt 00:00:14]}
Bg3 {[%clk 00:09:18]} {[%emt 00:04:15]} 34. Qe3 {[%clk 00:02:19]} {[%emt
00:01:53]} Rd5 {[%clk 00:02:55]} {[%emt 00:06:53]} 35. Qg1 {[%clk 00:02:00]}
{[%emt 00:00:49]} Re8 {[%clk 00:02:10]} {[%emt 00:01:16]} 36. Qxh2 {[%clk
00:01:03]} {[%emt 00:01:26]} Bxh2 {[%clk 00:02:38]} {[%emt 00:00:01]} 37. Rc3
{[%clk 00:00:47]} {[%emt 00:00:47]} Bg3 {[%clk 00:02:11]} {[%emt 00:00:57]} 38.
Rcxg3 {[%clk 00:00:58]} {[%emt 00:00:19]} hxg3 {[%clk 00:02:38]} {[%emt
00:00:04]} 39. Rxg3 {[%clk 00:01:02]} {[%emt 00:00:26]} Rxd4 {[%clk 00:02:55]}
{[%emt 00:00:12]} 40. b4 {[%clk 00:00:46]} {[%emt 00:00:46]} a5 {[%clk
00:00:54]} {[%emt 00:02:31]} 41. Nc5 {[%clk 00:00:41]} {[%emt 00:00:35]} axb4
{[%clk 00:00:50]} {[%emt 00:00:35]} 42. axb4 {[%clk 00:01:02]} {[%emt
00:00:09]} Rxb4 {[%clk 00:30:01]} {[%emt 00:01:48]} 43. Rc3 {[%clk 00:29:01]}
{[%emt 00:03:32]} Rb2 {[%clk 00:25:23]} {[%emt 00:05:07]} 44. Nd3 {[%clk
00:24:07]} {[%emt 00:05:24]} Re3 {[%clk 00:24:40]} {[%emt 00:01:14]} 45. Ra3
{[%clk 00:16:26]} {[%emt 00:08:11]} Kg7 {[%clk 00:23:19]} {[%emt 00:01:50]} 46.
Nxb2 {[%clk 00:16:42]} {[%emt 00:00:15]} Rxa3 {[%clk 00:23:44]} {[%emt
00:00:04]} 47. Nc4 {[%clk 00:17:06]} {[%emt 00:00:05]} Ra4 {[%clk 00:20:43]}
{[%emt 00:03:32]} 48. Nd2 {[%clk 00:17:00]} {[%emt 00:00:37]} c5 {[%clk
00:18:09]} {[%emt 00:03:04]} 49. Ke2 {[%clk 00:16:48]} {[%emt 00:00:41]} c4
{[%clk 00:17:19]} {[%emt 00:01:19]} 50. g4 {[%clk 00:11:53]} {[%emt 00:05:24]}
c3 {[%clk 00:16:35]} {[%emt 00:01:15]} 51. Nf3 {[%clk 00:12:07]} {[%emt
00:00:16]} Rf4 {[%clk 00:12:03]} {[%emt 00:05:02]} 52. Nh4 {[%clk 00:12:04]}
{[%emt 00:00:33]} Rf2+ {[%clk 00:12:23]} {[%emt 00:00:11]} 53. Kd1 {[%clk
00:12:28]} {[%emt 00:00:06]} Rh2 {[%clk 00:10:04]} {[%emt 00:02:49]} 54. Nf5+
{[%clk 00:12:41]} {[%emt 00:00:16]} Kf8 {[%clk 00:08:56]} {[%emt 00:01:39]} 55.
h4 {[%clk 00:12:47]} {[%emt 00:00:24]} Rd2+ {[%clk 00:09:06]} {[%emt 00:00:21]}
56. Kc1 {[%clk 00:13:11]} {[%emt 00:00:06]} Rg2 {[%clk 00:09:29]} {[%emt
00:00:07]} 57. Nh6 {[%clk 00:13:08]} {[%emt 00:00:32]} Ke7 {[%clk 00:08:01]}
{[%emt 00:01:59]} 58. h5 {[%clk 00:13:10]} {[%emt 00:00:28]} Ke6 {[%clk
00:05:58]} {[%emt 00:02:34]} 59. g6 {[%clk 00:12:44]} {[%emt 00:00:55]} fxg6
{[%clk 00:06:25]} {[%emt 00:00:03]} 60. hxg6 {[%clk 00:13:10]} {[%emt
00:00:05]} Kf6 {[%clk 00:06:50]} {[%emt 00:00:06]} 61. g7 {[%clk 00:12:53]}
{[%emt 00:00:47]} Kxg7 {[%clk 00:07:15]} {[%emt 00:00:05]} 62. Nf5+ {[%clk
00:13:19]} {[%emt 00:00:03]} Kf6 {[%clk 00:07:38]} {[%emt 00:00:09]} 63. Nd4
{[%clk 00:09:00]} {[%emt 00:04:48]} Rb2 {[%clk 00:05:38]} {[%emt 00:02:30]} 64.
Nf3 {[%clk 00:03:21]} {[%emt 00:06:09]} Ke6 {[%clk 00:05:45]} {[%emt 00:00:23]}
65. g5 {[%clk 00:03:19]} {[%emt 00:00:32]} Rf2 {[%clk 00:05:20]} {[%emt
00:00:55]} 66. Nh4 {[%clk 00:01:46]} {[%emt 00:02:03]} Kd5 {[%clk 00:05:34]}
{[%emt 00:00:16]} 67. g6 {[%clk 00:02:04]} {[%emt 00:00:12]} Kc4 {[%clk
00:05:55]} {[%emt 00:00:10]} 68. g7 {[%clk 00:01:14]} {[%emt 00:01:20]} Kd3
{[%clk 00:06:17]} {[%emt 00:00:08]} 69. Kb1 {[%clk 00:01:13]} {[%emt 00:00:30]}
Rf1+ {[%clk 00:06:15]} {[%emt 00:00:32]} 70. Ka2 {[%clk 00:01:15]} {[%emt
00:00:28]} Rg1 {[%clk 00:06:38]} {[%emt 00:00:07]} 0-1

[Event "Tournoi de MI de l'Echiquier du Pays de Bray"]
[Site "Gournay-en-Bray, France"]
[Date "2023.05.14"]
[Round "1.3"]
[White "DEFROMONT, Benjamin"]
[Black "DGEBUADZE, Alexander"]
[Result "1/2-1/2"]
[TimeControl "1h30/40 + 30 (30s/c)"]
[WhiteTitle "FM"]
[BlackTitle "GM"]
[WhiteFideId "36068829"]
[BlackFideId "203882"]
[WhiteElo "2347"]
[BlackElo "2435"]

1. e4 {[%clk 01:30:49]} {[%emt 00:00:10]} e6 {[%clk 01:30:28]} {[%emt
00:00:32]} 2. d4 {[%clk 01:31:08]} {[%emt 00:00:11]} d5 {[%clk 01:30:52]}
{[%emt 00:00:06]} 3. Nc3 {[%clk 01:31:27]} {[%emt 00:00:10]} Bb4 {[%clk
01:31:19]} {[%emt 00:00:06]} 4. e5 {[%clk 01:31:42]} {[%emt 00:00:14]} Ne7
{[%clk 01:30:42]} {[%emt 00:01:07]} 5. a3 {[%clk 01:31:45]} {[%emt 00:00:28]}
Bxc3+ {[%clk 01:31:05]} {[%emt 00:00:06]} 6. bxc3 {[%clk 01:32:10]} {[%emt
00:00:04]} c5 {[%clk 01:31:31]} {[%emt 00:00:04]} 7. Qg4 {[%clk 01:31:32]}
{[%emt 00:01:08]} O-O {[%clk 01:31:40]} {[%emt 00:00:21]} 8. Bd3 {[%clk
01:30:48]} {[%emt 00:01:14]} Nbc6 {[%clk 01:31:27]} {[%emt 00:00:43]} 9. Bg5
{[%clk 01:29:17]} {[%emt 00:02:01]} Qa5 {[%clk 01:31:34]} {[%emt 00:00:24]} 10.
Ne2 {[%clk 01:27:17]} {[%emt 00:02:30]} Ng6 {[%clk 01:31:47]} {[%emt 00:00:17]}
11. O-O {[%clk 01:25:18]} {[%emt 00:02:28]} c4 {[%clk 01:32:06]} {[%emt
00:00:11]} 12. Bxg6 {[%clk 01:25:34]} {[%emt 00:00:14]} fxg6 {[%clk 01:32:31]}
{[%emt 00:00:05]} 13. a4 {[%clk 01:17:14]} {[%emt 00:08:51]} Rf5 {[%clk
01:32:45]} {[%emt 00:00:16]} 14. h4 {[%clk 00:54:28]} {[%emt 00:23:16]} Rb8
{[%clk 01:21:16]} {[%emt 00:11:59]} 15. Bd2 {[%clk 00:45:03]} {[%emt 00:09:54]}
Bd7 {[%clk 01:09:59]} {[%emt 00:11:48]} 16. Ng3 {[%clk 00:41:52]} {[%emt
00:03:40]} h5 {[%clk 01:01:39]} {[%emt 00:08:51]} 17. Qd1 {[%clk 00:42:17]}
{[%emt 00:00:04]} Rf7 {[%clk 01:01:56]} {[%emt 00:00:13]} 18. Ne2 {[%clk
00:38:11]} {[%emt 00:04:37]} Ne7 {[%clk 00:55:34]} {[%emt 00:06:51]} 19. Bg5
{[%clk 00:36:48]} {[%emt 00:01:53]} Rbf8 {[%clk 00:46:20]} {[%emt 00:09:44]} 20.
Qd2 {[%clk 00:32:40]} {[%emt 00:04:38]} Nc8 {[%clk 00:39:30]} {[%emt 00:07:20]}
21. Nf4 {[%clk 00:24:40]} {[%emt 00:08:30]} Kh7 {[%clk 00:39:41]} {[%emt
00:00:19]} 1/2-1/2

[Event "Tournoi de MI de l'Echiquier du Pays de "]
[Site "Gournay-en-Bray, France"]
[Date "2023.05.14"]
[Round "1.4"]
[White "MOUHAMAD, Joachim"]
[Black "LEFEBVRE, Hervé"]
[Result "0-1"]
[WhiteElo "2238"]
[BlackElo "2161"]
[PlyCount "118"]
[EventDate "2023.??.??"]
[TimeControl "1/40+30:0"]
[WhiteClock "0:17:26"]
[BlackClock "0:08:23"]

1. e4 {[%emt 0:00:18]} c5 {[%emt 0:00:25]} 2. Nc3 {[%emt 0:01:03]} Nc6 {[%emt
0:01:47]} 3. f4 {[%emt 0:00:23]} g6 {[%emt 0:00:24]} 4. Nf3 {[%emt 0:00:07]}
Bg7 {[%emt 0:00:08]} 5. Bb5 {[%emt 0:00:22]} Nd4 {[%emt 0:01:47]} 6. O-O {
[%emt 0:00:25]} a6 {[%emt 0:03:13]} 7. Bc4 {[%emt 0:01:07]} e6 {[%emt 0:07:19]}
8. d3 {[%emt 0:00:54]} b5 {[%emt 0:15:15]} 9. Bb3 {[%emt 0:00:11]} Nxb3 {[%emt
0:00:08]} 10. axb3 {[%emt 0:00:12]} Bb7 {[%emt 0:00:04]} 11. Qe1 {[%emt 0:04:
50]} Ne7 {[%emt 0:02:17]} 12. Be3 {[%emt 0:07:26]} Rc8 {[%emt 0:15:57]} 13. Qf2
{[%emt 0:03:05]} d6 {[%emt 0:06:29]} 14. Rae1 {[%emt 0:01:29]} O-O {[%emt 0:00:
28]} 15. Bc1 {[%emt 0:08:09]} Qd7 {[%emt 0:03:19]} 16. Qh4 {[%emt 0:01:03]} f5
{[%emt 0:02:49]} 17. e5 {[%emt 0:19:25]} Nc6 {[%emt 0:04:27]} 18. Be3 {[%emt 0:
17:51]} Rfe8 {[%emt 0:19:52]} 19. Qg3 {[%emt 0:07:09]} Nd4 {[%emt 0:01:49]} 20.
Rf2 {[%emt 0:08:51]} Nxf3+ {[%emt 0:03:12]} 21. gxf3 {[%emt 0:00:03]} Qc7 {
[%emt 0:03:19]} 22. Bd2 {[%emt 0:02:00]} Rcd8 {[%emt 0:00:16]} 23. h4 {[%emt 0:
07:35]} dxe5 {[%emt 0:00:17]} 24. fxe5 {[%emt 0:00:09]} Rd4 {[%emt 0:00:14]}
25. Ne2 {[%emt 0:01:41]} Bxe5 {[%emt 0:02:23]} 26. f4 {[%emt 0:00:01]} Bg7 {
[%emt 0:02:31]} 27. Nxd4 {[%emt 0:00:27]} Bxd4 {[%emt 0:01:35]} 28. Be3 {[%emt
0:00:12]} Bxb2 {[%emt 0:01:10]} 29. Kh2 {[%emt 0:00:41]} Bf6 {[%emt 0:00:41]}
30. Rg1 {[%emt 0:01:05]} Kf7 {[%emt 0:00:40]} 31. Re2 {[%emt 0:01:25]} e5 {
[%emt 0:01:20]} 32. Rge1 {[%emt 0:00:41]} exf4 {[%emt 0:00:27]} 33. Bxf4 {
[%emt 0:00:35]} Rxe2+ {[%emt 0:00:06]} 34. Rxe2 {[%emt 0:00:03]} Qc6 {[%emt 0:
00:06]} 35. Qe1 {[%emt 0:04:32]} Bxh4 {[%emt 0:01:30]} 36. Bg3 {[%emt 0:00:41]}
Bf6 {[%emt 0:00:25]} 37. Qf1 {[%emt 0:03:00]} Qd5 {[%emt 0:00:30]} 38. Re1 {
[%emt 0:00:33]} h5 {[%emt 0:00:31]} 39. c4 {[%emt 0:00:45]} Qc6 {[%emt 0:00:16]
} 40. Be5 {[%emt 0:00:46]} Bxe5+ {[%emt 0:00:38]} 41. Rxe5 {[%emt 0:00:07]} Qd6
{[%emt 0:07:13]} 42. Qf4 {[%emt 0:00:03]} Qxd3 {[%emt 0:00:10]} 43. Re3 {[%emt
0:16:27]} Qd2+ {[%emt 0:02:26]} 44. Kg3 {[%emt 0:00:09]} Qg2+ {[%emt 0:08:48]}
45. Kh4 {[%emt 0:00:06]} Qg4+ {[%emt 0:04:08]} 46. Qxg4 {[%emt 0:00:07]} hxg4 {
[%emt 0:00:04]} 47. Re5 {[%emt 0:01:07]} Kf6 {[%emt 0:00:57]} 48. Rxc5 {[%emt
0:00:06]} bxc4 {[%emt 0:00:21]} 49. bxc4 {[%emt 0:01:54]} g5+ {[%emt 0:01:13]}
50. Kg3 {[%emt 0:00:06]} Bf3 {[%emt 0:00:20]} 51. Ra5 {[%emt 0:00:21]} f4+ {
[%emt 0:00:12]} 52. Kf2 {[%emt 0:00:08]} Bb7 {[%emt 0:01:40]} 53. c5 {[%emt 0:
00:17]} g3+ {[%emt 0:00:04]} 54. Kg1 {[%emt 0:01:00]} f3 {[%emt 0:02:45]} 55.
c6 {[%emt 0:00:06]} Bc8 {[%emt 0:00:03]} 56. Ra1 {[%emt 0:01:32]} Bh3 {[%emt 0:
01:25]} 57. c7 {[%emt 0:00:20]} f2+ {[%emt 0:00:14]} 58. Kh1 {[%emt 0:00:04]}
g2+ {[%emt 0:00:07]} 59. Kh2 {[%emt 0:00:04]} g1=Q+ {[%emt 0:00:13]} 0-1